fUSD/lending_fUSD_20250520
["ID","MTS","AMOUNT","RATE_DAILY","PERIOD"]
[361741201,1747744242698,-500.0,0.00011973,2]
[361741202,1747744242708,-279.39129869,0.00011973,2]
[361741203,1747744242721,-225.6188262,0.00011973,2]
[361741204,1747744242731,-862.84034222,0.0001199,2]
[361741205,1747744242863,-795.19965778,0.0001199,2]
[361741207,1747744242873,-166.976,0.0001199,2]
[361741208,1747744242883,-646.6801892,0.0001199,2]
[361741209,1747744242894,-738.07111253,0.0001199,2]
[361741214,1747744246236,-79.65130057,0.0001199,2]
[361741215,1747744246245,-1893.8606412,0.0001199,2]
[361741216,1747744246255,-3245.95731242,0.0001199,2]
[361741217,1747744246267,-547.84176427,0.0001199,2]
[361741218,1747744246279,-6086.93053421,0.0001199,2]
[361741219,1747744246289,-521.5730402,0.0001199,2]
[361741220,1747744246298,-670.5245789,0.00011992,2]
[361741221,1747744246307,-694.3689686,0.00011992,2]
[361741222,1747744246318,-718.2133582,0.00011992,2]
[361741223,1747744246328,-847.8734711,0.00011992,2]
[361741224,1747744246337,-878.0245291,0.00011992,2]
[361741225,1747744246347,-908.175587,0.00011992,2]
[361741226,1747744246357,-938.326645,0.00011992,2]
[361741227,1747744246367,-1963.6910641,0.00011992,2]
[361741228,1747744246377,-2033.5214871,0.00011992,2]
[361741229,1747744246387,-2103.35191,0.00011992,2]
[361741230,1747744246396,-2173.182333,0.00011992,2]
[361741231,1747744246407,-2625.84249349,0.00011992,2]
[361741232,1747744246419,-6405.35225561,0.00011992,2]
[361741233,1747744246430,-1418.43860343,0.00011992,2]
[361741234,1747744246441,-429.87372272,0.00011992,2]
[361741235,1747744246454,-6333.34756115,0.00011992,2]
[361741236,1747744246464,-7332.1250254,0.00011992,2]
[361741237,1747744246474,-6482.5901636,0.00011992,2]
[361741238,1747744246484,-476.7287324,0.00011992,2]
[361741239,1747744246494,-431.8844245,0.00011992,2]
[361741240,1747744246504,-387.0401166,0.00011992,2]
[361741241,1747744246514,-155.0,0.00011993,2]
[361741242,1747744246524,-151.0,0.00011993,2]
[361741243,1747744246535,-151.0,0.00011993,2]
[361741244,1747744246545,-156.65241621,0.00011993,2]
[361741245,1747744246556,-668.65185757,0.00011993,2]
[361741246,1747744246567,-668.65185757,0.00011993,2]
[361741247,1747744246577,-1199.20597015,0.00011993,2]
[361741248,1747744246589,-500.0,0.00011999,2]
[361741249,1747744246599,-500.0,0.00011999,2]
[361741250,1747744246609,-500.0,0.00011999,2]
[361741251,1747744246619,-500.0,0.00011999,2]
[361741252,1747744246629,-500.0,0.00011999,2]
[361741253,1747744246639,-418.96858684,0.00011999,2]
[361741254,1747744246650,-269.0,0.00011999,2]
[361741255,1747744246660,-229.98784612,0.00011999,2]
[361741256,1747744246670,-198.50370811,0.00011999,2]
[361741257,1747744246680,-153090.07134238,0.00012,2]
[361741258,1747744246692,-1635.64305467,0.00012,2]
[361741259,1747744246731,-1002.78404392,0.00012,2]
[361741260,1747744246746,-1794.2209064,0.00012,2]
[361741261,1747744246762,-1748.99000005,0.00012,2]
[361741262,1747744251143,1000.0,0.0002739,120]
[361741269,1747744603646,-158.48380457,0.00011251,2]
[361741271,1747744778709,164.32432432,0.000125,7]
[361741272,1747744840210,244.60431655,0.000125,7]
[361741273,1747744844951,245.92592593,0.000125,7]
[361741274,1747744849217,197.51915021,0.000125,7]
[361741275,1747744945243,-417.18385513,0.00011212,2]
[361741276,1747744948366,-48.68614487,0.00011212,2]
[361741277,1747744958499,158.53658537,0.000125,7]
[361741280,1747745074572,14613.20046469,0.000125,5]
[361741285,1747745110469,960.45,9.294e-05,2]
[361741286,1747745131316,164.03,0.00011115,2]
[361741305,1747745252537,150.0,0.00011212,7]
[361741307,1747745309302,250.0,0.0001104,2]
[361741329,1747745431528,-653.51,0.00011247,2]
[361741330,1747745431540,-546.49,0.00011247,2]
[361741331,1747745431551,-71.7108152,0.00011247,2]
[361741332,1747745431582,-300.0,0.00011247,2]
[361741333,1747745431591,-128.2891848,0.00011247,2]
[361741334,1747745431600,-200.0,0.00011247,2]
[361741335,1747745431609,-23900.0,0.00011248,2]
[361741336,1747745431618,-200.0,0.00011248,2]
[361741337,1747745431627,-841.51619543,0.00011251,2]
[361741338,1747745431636,-500.0,0.00011425,2]
[361741339,1747745431644,-877.17,0.00011446,2]
[361741340,1747745431653,-960.45,0.00011558,2]
[361741341,1747745431661,-1528.904,0.0001176,2]
[361741342,1747745431669,-549.556825,0.0001176,2]
[361741343,1747745431678,-5142.8609108,0.000118,2]
[361741344,1747745431686,-500.0,0.00011873,2]
[361741345,1747745431695,-500.0,0.00011873,2]
[361741346,1747745431705,-207.4,0.00011885,2]
[361741347,1747745431713,-150.0,0.00011892,2]
[361741348,1747745431722,-150.99,0.00011893,2]
[361741349,1747745431730,-9999.99,0.00011893,2]
[361741350,1747745431739,-5284.11,0.00011893,2]
[361741351,1747745431747,-299.99,0.00011893,2]
[361741352,1747745431757,-487.79,0.00011893,2]
[361741353,1747745431766,-150.99,0.00011893,2]
[361741354,1747745431775,-70209.82,0.00011893,2]
[361741355,1747745431784,-24575.9617,0.000119,2]
[361741356,1747745431793,-29345.0605,0.000119,2]
[361741357,1747745431803,-1000.0,0.000119,2]
[361741358,1747745431812,-253.91217778,0.000119,2]
[361741359,1747745431822,-8425.54721881,0.000119,2]
[361741360,1747745431830,-232.70958446,0.000119,2]
[361741361,1747745431838,-5119.96900628,0.000119,2]
[361741362,1747745431846,-155.98416512,0.000119,2]
[361741363,1747745431854,-254.02337006,0.000119,2]
[361741365,1747745431861,-412.7395981,0.0001199,2]
[361741367,1747745431870,-1651.4240459,0.0001199,2]
[361741369,1747745431879,-639.5473099,0.0001199,2]
[361741371,1747745431887,-228.3386986,0.0001199,2]
[361741373,1747745431894,-177.28966628,0.0001199,2]
[361741375,1747745431902,-412.7395981,0.00011992,2]
[361741377,1747745431911,-412.7395981,0.00011992,2]
[361741378,1747745431917,-412.7395981,0.00011992,2]
[361741380,1747745431924,-412.7395981,0.00011992,2]
[361741382,1747745431933,-1366.3914476,0.00011992,2]
[361741384,1747745431942,-1081.3588493,0.00011992,2]
[361741387,1747745431950,-796.3262511,0.00011992,2]
[361741388,1747745431958,-511.2936528,0.00011992,2]
[361741390,1747745431966,-286.5374029,0.00011992,2]
[361741392,1747745431974,-344.7361072,0.00011992,2]
[361741394,1747745431984,-402.9348116,0.00011992,2]
[361741395,1747745431993,-151.0,0.00011993,2]
[361741396,1747745432003,-151.0,0.00011993,2]
[361741397,1747745432012,-668.65185757,0.00011993,2]
[361741398,1747745432022,-668.65185757,0.00011993,2]
[361741399,1747745432031,-1199.20597015,0.00011993,2]
[361741400,1747745432041,-500.0,0.00011998,2]
[361741401,1747745432051,-500.0,0.00011998,2]
[361741402,1747745432060,-500.0,0.00011998,2]
[361741403,1747745432070,-500.0,0.00011998,2]
[361741404,1747745432080,-500.0,0.00011998,2]
[361741405,1747745432089,-500.0,0.00011998,2]
[361741406,1747745432100,-500.0,0.00011998,2]
[361741407,1747745432110,-500.0,0.00011998,2]
[361741408,1747745432119,-500.0,0.00011998,2]
[361741409,1747745432129,-500.0,0.00011998,2]
[361741410,1747745432138,-500.0,0.00011998,2]
[361741411,1747745432148,-298.52359098,0.00011998,2]
[361741412,1747745432157,-500.0,0.00011998,2]
[361741413,1747745432167,-500.0,0.00011998,2]
[361741414,1747745432176,-500.0,0.00011998,2]
[361741415,1747745432186,-500.0,0.00011998,2]
[361741416,1747745432195,-500.0,0.00011998,2]
[361741417,1747745432205,-500.0,0.00011998,2]
[361741418,1747745432215,-500.0,0.00011998,2]
[361741419,1747745432224,-500.0,0.00011998,2]
[361741420,1747745432234,-500.0,0.00011998,2]
[361741421,1747745432244,-500.0,0.00011998,2]
[361741422,1747745432254,-500.0,0.00011998,2]
[361741423,1747745432264,-500.0,0.00011998,2]
[361741424,1747745432276,-500.0,0.00011998,2]
[361741425,1747745432290,-500.0,0.00011998,2]
[361741426,1747745432300,-500.0,0.00011998,2]
[361741427,1747745432310,-305.38065269,0.00011998,2]
[361741428,1747745432320,-500.0,0.00011998,2]
[361741429,1747745432330,-500.0,0.00011998,2]
[361741430,1747745432339,-500.0,0.00011998,2]
[361741431,1747745432348,-500.0,0.00011998,2]
[361741432,1747745432357,-500.0,0.00011998,2]
[361741433,1747745432366,-180742.77384542,0.00012,2]
[361741434,1747745432379,-644.32457463,0.00012,2]
[361741435,1747745432390,-4213.2780331,0.00012,2]
[361741436,1747745432401,-1047.4188,0.00012,2]
[361741437,1747745432424,-395.39945336,0.00012,2]
[361741438,1747745432437,-298.86,0.00012,2]
[361741439,1747745432449,-2476.80862768,0.00012,2]
[361741444,1747745437548,-463.02420035,0.00011999,2]
[361741446,1747745437603,-36.97579965,0.00011999,2]
[361741447,1747745437613,-12274.75153975,0.00012,2]
[361741460,1747745442586,-797.6518777,0.00012,2]
[361741462,1747745442676,-15437.9,0.00012,2]
[361741463,1747745442687,-5235.0,0.00012,2]
[361741464,1747745442700,-3024.49501116,0.00012,2]
[361741465,1747745442744,235.67567568,0.00012519,7]
[361741466,1747745442761,-466.16585336,0.00012,2]
[361741467,1747745442773,-14370.20896637,0.00012,2]
[361741468,1747745442783,-502.0,0.00012,2]
[361741469,1747745442793,-5809.65616323,0.00012,2]
[361741470,1747745442806,-115691.52,0.00012,2]
[361741471,1747745442842,-836.77157986,0.00012,2]
[361741472,1747745442909,-1228.49761,0.00012,2]
[361741473,1747745442922,-52335.92599999,0.00012,2]
[361741474,1747745442952,-50469.44201978,0.00012,2]
[361741476,1747745442968,-336.3552058,0.00012,2]
[361741477,1747745442980,-1105.9,0.00012,2]
[361741504,1747745445520,-674.93180001,0.00012,2]
[361741505,1747745445533,-9740.887661,0.00012,2]
[361741506,1747745445545,-462.12165991,0.00012,2]
[361741507,1747745445556,-281.0,0.00012,2]
[361741508,1747745445627,-531.72560538,0.00012,2]
[361741509,1747745445640,-867.194902,0.00012,2]
[361741510,1747745445652,-8944.94273101,0.00012,2]
[361741511,1747745445664,-6138.54824603,0.00012,2]
[361741512,1747745445745,-2516.8789918,0.00012,2]
[361741513,1747745445757,-3500.0,0.00012,2]
[361741514,1747745445770,-13602.89335895,0.00012,2]
[361741515,1747745445782,-812.00000096,0.00012,2]
[361741516,1747745445794,-113968.29013311,0.00012,2]
[361741517,1747745445804,-11938.48065125,0.00012,2]
[361741518,1747745445819,-1046.80098093,0.00012,2]
[361741519,1747745445833,-372.5559924,0.00012,2]
[361741520,1747745445847,-3457.05550879,0.00012,2]
[361741521,1747745445866,-317.43676053,0.00012,2]
[361741522,1747745445878,-971.95702949,0.00012,2]
[361741542,1747745500311,153.64158022,0.00012517,7]
[361741548,1747745705481,3193.78348572,0.00011173,2]
[361741549,1747745705504,10000.0,0.00011173,2]
[361741550,1747745705527,10000.0,0.00011173,2]
[361741551,1747745705550,706.21651428,0.00011173,2]
[361741552,1747745799067,150.0,0.00013,5]
[361741555,1747745951168,205.0,0.00010242,2]
[361741561,1747746147637,217.32,0.00011054,2]
[361741562,1747746188588,898.01,9.111e-05,2]
[361741569,1747746388107,150.0,0.00011059,7]
[361741580,1747746525942,232.93,0.00010982,2]
[361741588,1747746631742,-1166.26282641,0.00011232,2]
[361741589,1747746631784,-33.73717359,0.00011232,2]
[361741590,1747746631795,-200.0,0.00011233,2]
[361741591,1747746631805,-250.0,0.00011233,2]
[361741592,1747746631815,-563.08138641,0.00011233,2]
[361741593,1747746631828,-2374.49246916,0.00011233,2]
[361741594,1747746631839,-1098.9,0.00011233,2]
[361741595,1747746631851,-970.99304133,0.00011233,2]
[361741596,1747746631864,-1073.90425003,0.00011233,2]
[361741597,1747746631900,-191.95885307,0.00011233,2]
[361741598,1747746631910,-500.0,0.00011233,2]
[361741599,1747746631921,-900.37511203,0.00011258,2]
[361741600,1747746631933,-2092.54521618,0.00011258,2]
[361741601,1747746631944,-365.19994533,0.00011258,2]
[361741602,1747746631957,-312.5,0.00011258,2]
[361741603,1747746631969,-538.17972646,0.00011258,2]
[361741604,1747746631980,-200.0,0.0001129,2]
[361741605,1747746631989,-189.43541354,0.00011351,2]
[361741606,1747746632026,-810.56458646,0.00011351,2]
[361741607,1747746632035,-898.01,0.00011375,2]
[361741608,1747746632045,-167.17,0.00011515,2]
[361741609,1747746632055,-1820.84918904,0.00011652,2]
[361741610,1747746632067,-610.44814184,0.00011652,2]
[361741611,1747746632079,-906.39902766,0.00011652,2]
[361741612,1747746632090,-13718.54166556,0.00011652,2]
[361741613,1747746632102,-4602.16426908,0.00011652,2]
[361741614,1747746632115,-1016.2283993,0.00011652,2]
[361741615,1747746632127,-1852.98025342,0.00011652,2]
[361741616,1747746632141,-292.89009139,0.00011652,2]
[361741617,1747746632151,-675.470591,0.0001176,2]
[361741618,1747746632162,-207.4,0.00011793,2]
[361741619,1747746632172,-150.0,0.00011799,2]
[361741620,1747746632183,-1000.0,0.000118,2]
[361741621,1747746632194,-150.99,0.000118,2]
[361741622,1747746632205,-7378.83407804,0.000118,2]
[361741866,1747746637695,-82.47592196,0.000118,2]
[361741867,1747746637707,-299.99,0.000118,2]
[361741868,1747746637718,-500.0,0.00011873,2]
[361741869,1747746637728,-500.0,0.00011873,2]
[361741870,1747746637738,-52.01819058,0.00011888,2]
[361741871,1747746637751,-471.25397029,0.00011888,2]
[361741872,1747746637763,-4476.72783913,0.00011888,2]
[361741873,1747746637773,-5000.0,0.00011888,2]
[361741874,1747746637784,-151.0,0.00011893,2]
[361741875,1747746637795,-668.65185757,0.00011893,2]
[361741876,1747746637805,-155.15963942,0.00011893,2]
[361741877,1747746637815,-1199.20597015,0.00011893,2]
[361741878,1747746637827,-1223.123,0.00011899,2]
[361741879,1747746637837,-785.87169373,0.00011899,2]
[361741880,1747746637849,-10830.56930627,0.00011899,2]
[361741881,1747746637859,-1421.66035433,0.000119,2]
[361741882,1747746637872,-2031.747,0.000119,2]
[361741883,1747746637883,-11568.6154122,0.000119,2]
[361741884,1747746637895,-5447.46272893,0.000119,2]
[361741885,1747746637908,-3765.3254078,0.000119,2]
[361741886,1747746637922,-412.03802107,0.000119,2]
[361741887,1747746637935,-689.32368187,0.000119,2]
[361741888,1747746637947,-321.14149992,0.000119,2]
[361741889,1747746637959,-358.33485164,0.000119,2]
[361741890,1747746637971,-45016.86311506,0.000119,2]
[361741893,1747746639808,-4667.51999453,0.000119,2]
[361741894,1747746639821,-2607.40499999,0.000119,2]
[361741895,1747746639834,-1493.19,0.000119,2]
[361741896,1747746639925,-21065.12619579,0.000119,2]
[361741897,1747746639940,-209.43862596,0.000119,2]
[361741898,1747746639951,-242.01562387,0.000119,2]
[361741899,1747746639961,-10177.75523753,0.000119,2]
[361741900,1747746639972,-1200.0,0.000119,2]
[361741901,1747746639982,-500.0,0.00011973,2]
[361741902,1747746639992,-350.0,0.00011988,2]
[361741903,1747746640002,-412.73959832,0.0001199,2]
[361741904,1747746640012,-163.6555646,0.0001199,2]
[361741905,1747746640022,-163.6555646,0.00011992,2]
[361741906,1747746640032,-163.6555646,0.00011992,2]
[361741907,1747746640042,-163.6555646,0.00011992,2]
[361741908,1747746640052,-500.0,0.00011999,2]
[361741909,1747746640062,-500.0,0.00011999,2]
[361741910,1747746640072,-289.32269374,0.00011999,2]
[361741911,1747746640082,-248.52430107,0.00011999,2]
[361741912,1747746640092,-380.40562145,0.00011999,2]
[361741913,1747746640102,-191.87906109,0.00011999,2]
[361741914,1747746640112,-185.63901523,0.00011999,2]
[361741915,1747746640122,-511.0,0.00012,2]
[361741916,1747746640132,-130343.72808631,0.00012,2]
[361741917,1747746640142,-4767328.15921627,0.00012,2]
[361741918,1747746640152,-319702.07394428,0.00012,2]
[361741919,1747746640165,-1957.78746226,0.00012,2]
[361741920,1747746640177,-1385.47993132,0.00012,2]
[361741923,1747746642819,-158.85178464,0.000119,2]
[361741924,1747746642830,-513.34406872,0.00012,2]
[361741925,1747746642842,-69564.51719795,0.00012,2]
[361741926,1747746642874,-16364.59532645,0.00012,2]
[361741927,1747746642883,-123163.01659009,0.00012,2]
[361741928,1747746642892,-182.287037,0.00012,2]
[361741929,1747746642902,-151.0,0.00012,2]
[361741930,1747746642911,-151.0,0.00012,2]
[361741931,1747746642921,-272.832852,0.00012,2]
[361741932,1747746642931,-272.832852,0.00012,2]
[361741933,1747746642941,-179.449212,0.00012,2]
[361741934,1747746642950,-151.0,0.00012,2]
[361741935,1747746642959,-151.0,0.00012,2]
[361741936,1747746642968,-151.0,0.00012,2]
[361741937,1747746642977,-231.480098,0.00012,2]
[361741938,1747746642986,-151.0,0.00012,2]
[361741939,1747746642995,-151.0,0.00012,2]
[361741940,1747746643004,-151.0,0.00012,2]
[361741941,1747746643013,-151.0,0.00012,2]
[361741942,1747746643022,-151.0,0.00012,2]
[361741943,1747746643033,-151.0,0.00012,2]
[361741944,1747746643042,-151.0,0.00012,2]
[361741945,1747746643053,-151.0,0.00012,2]
[361741946,1747746643063,-151.0,0.00012,2]
[361741947,1747746643073,-151.0,0.00012,2]
[361741948,1747746643082,-298.475694,0.00012,2]
[361741949,1747746643091,-296.737575,0.00012,2]
[361741950,1747746643101,-652.1337,0.00012,2]
[361741951,1747746643111,-652.1337,0.00012,2]
[361741952,1747746643121,-652.1337,0.00012,2]
[361741953,1747746643130,-652.1337,0.00012,2]
[361741954,1747746643141,-652.1337,0.00012,2]
[361741955,1747746643151,-652.1337,0.00012,2]
[361741956,1747746643160,-151.0,0.00012,2]
[361741957,1747746643169,-151.0,0.00012,2]
[361741958,1747746643178,-151.0,0.00012,2]
[361741959,1747746643187,-151.0,0.00012,2]
[361741960,1747746643197,-151.0,0.00012,2]
[361741961,1747746643207,-184.375296,0.00012,2]
[361741962,1747746643218,-151.0,0.00012,2]
[361741963,1747746643229,-241.677827,0.00012,2]
[361741964,1747746643239,-151.0,0.00012,2]
[361741965,1747746643248,-151.0,0.00012,2]
[361741966,1747746643257,-151.0,0.00012,2]
[361741967,1747746643267,-151.0,0.00012,2]
[361741968,1747746643276,-152.152125,0.00012,2]
[361741969,1747746643288,-151.0,0.00012,2]
[361741970,1747746643297,-151.0,0.00012,2]
[361741971,1747746643306,-151.0,0.00012,2]
[361741972,1747746643315,-151.0,0.00012,2]
[361741973,1747746643324,-151.0,0.00012,2]
[361741974,1747746643333,-151.0,0.00012,2]
[361741975,1747746643343,-151.0,0.00012,2]
[361741976,1747746643350,-153.479839,0.00012,2]
[361741977,1747746643359,-151.0,0.00012,2]
[361741978,1747746643367,-151.0,0.00012,2]
[361741979,1747746643375,-151.0,0.00012,2]
[361741980,1747746643383,-210.857061,0.00012,2]
[361741981,1747746643390,-151.0,0.00012,2]
[361741982,1747746643397,-287.51635,0.00012,2]
[361741983,1747746643406,-345.85405,0.00012,2]
[361741984,1747746643413,-345.85405,0.00012,2]
[361741985,1747746643420,-345.85405,0.00012,2]
[361741986,1747746643427,-345.85405,0.00012,2]
[361741987,1747746643434,-345.85405,0.00012,2]
[361741988,1747746643442,-345.85405,0.00012,2]
[361741989,1747746643449,-151.0,0.00012,2]
[361741990,1747746643457,-151.0,0.00012,2]
[361741991,1747746643464,-151.0,0.00012,2]
[361741992,1747746643472,-182.107339,0.00012,2]
[361741993,1747746643479,-151.0,0.00012,2]
[361741994,1747746643486,-151.0,0.00012,2]
[361741995,1747746643493,-151.0,0.00012,2]
[361741996,1747746643502,-151.0,0.00012,2]
[361741997,1747746643509,-151.0,0.00012,2]
[361741998,1747746643518,-151.0,0.00012,2]
[361741999,1747746643526,-151.0,0.00012,2]
[361742000,1747746643535,-198.49093,0.00012,2]
[361742001,1747746643544,-198.49093,0.00012,2]
[361742002,1747746643551,-198.49093,0.00012,2]
[361742003,1747746643559,-151.0,0.00012,2]
[361742004,1747746643566,-151.0,0.00012,2]
[361742005,1747746643572,-151.0,0.00012,2]
[361742006,1747746643579,-151.0,0.00012,2]
[361742007,1747746643586,-151.0,0.00012,2]
[361742008,1747746643594,-151.0,0.00012,2]
[361742009,1747746643602,-151.0,0.00012,2]
[361742010,1747746643609,-151.0,0.00012,2]
[361742011,1747746643617,-151.0,0.00012,2]
[361742012,1747746643625,-151.0,0.00012,2]
[361742013,1747746643633,-151.0,0.00012,2]
[361742014,1747746643641,-151.0,0.00012,2]
[361742015,1747746643649,-151.0,0.00012,2]
[361742016,1747746643657,-151.0,0.00012,2]
[361742017,1747746643669,-169.788635,0.00012,2]
[361742018,1747746643676,-151.0,0.00012,2]
[361742019,1747746643683,-151.0,0.00012,2]
[361742020,1747746643692,-151.0,0.00012,2]
[361742021,1747746643703,-154.128472,0.00012,2]
[361742022,1747746643712,-151.0,0.00012,2]
[361742023,1747746643722,-151.0,0.00012,2]
[361742024,1747746643732,-151.0,0.00012,2]
[361742025,1747746643743,-151.0,0.00012,2]
[361742026,1747746643754,-151.0,0.00012,2]
[361742027,1747746643763,-151.0,0.00012,2]
[361742028,1747746643773,-151.0,0.00012,2]
[361742029,1747746643784,-151.0,0.00012,2]
[361742030,1747746643794,-151.0,0.00012,2]
[361742031,1747746643803,-151.0,0.00012,2]
[361742032,1747746643814,-151.0,0.00012,2]
[361742033,1747746643824,-151.0,0.00012,2]
[361742034,1747746643834,-151.0,0.00012,2]
[361742035,1747746643844,-151.0,0.00012,2]
[361742036,1747746643854,-151.0,0.00012,2]
[361742037,1747746643863,-151.0,0.00012,2]
[361742038,1747746643872,-151.0,0.00012,2]
[361742039,1747746643883,-268.852666,0.00012,2]
[361742040,1747746643892,-151.0,0.00012,2]
[361742041,1747746643902,-151.0,0.00012,2]
[361742042,1747746643911,-151.0,0.00012,2]
[361742043,1747746643921,-151.0,0.00012,2]
[361742044,1747746643931,-151.0,0.00012,2]
[361742045,1747746643940,-151.0,0.00012,2]
[361742046,1747746643950,-296.681335,0.00012,2]
[361742047,1747746643959,-615.378273,0.00012,2]
[361742048,1747746643969,-615.378273,0.00012,2]
[361742049,1747746643979,-615.378273,0.00012,2]
[361742050,1747746643991,-151.0,0.00012,2]
[361742051,1747746644001,-151.0,0.00012,2]
[361742052,1747746644010,-151.0,0.00012,2]
[361742053,1747746644020,-615.378273,0.00012,2]
[361742054,1747746644033,-151.0,0.00012,2]
[361742055,1747746644046,-615.378273,0.00012,2]
[361742056,1747746644055,-615.378273,0.00012,2]
[361742057,1747746644065,-278.494418,0.00012,2]
[361742058,1747746644076,-278.494418,0.00012,2]
[361742059,1747746644087,-157.011695,0.00012,2]
[361742060,1747746644097,-151.0,0.00012,2]
[361742061,1747746644107,-151.0,0.00012,2]
[361742062,1747746644117,-151.0,0.00012,2]
[361742063,1747746644127,-156.906183,0.00012,2]
[361742064,1747746644137,-151.0,0.00012,2]
[361742065,1747746644147,-243.977181,0.00012,2]
[361742066,1747746644158,-151.0,0.00012,2]
[361742067,1747746644168,-151.0,0.00012,2]
[361742068,1747746644177,-151.0,0.00012,2]
[361742069,1747746644187,-151.0,0.00012,2]
[361742070,1747746644197,-151.0,0.00012,2]
[361742071,1747746644206,-151.0,0.00012,2]
[361742072,1747746644216,-284.98231,0.00012,2]
[361742073,1747746644225,-151.0,0.00012,2]
[361742074,1747746644235,-151.0,0.00012,2]
[361742075,1747746644245,-151.0,0.00012,2]
[361742076,1747746644254,-151.0,0.00012,2]
[361742077,1747746644265,-151.0,0.00012,2]
[361742078,1747746644275,-151.0,0.00012,2]
[361742079,1747746644288,-151.0,0.00012,2]
[361742080,1747746644297,-151.0,0.00012,2]
[361742081,1747746644307,-172.690053,0.00012,2]
[361742082,1747746644318,-172.690053,0.00012,2]
[361742083,1747746644327,-151.0,0.00012,2]
[361742084,1747746644337,-151.0,0.00012,2]
[361742085,1747746644347,-171.346813,0.00012,2]
[361742086,1747746644357,-171.346813,0.00012,2]
[361742087,1747746644366,-151.0,0.00012,2]
[361742088,1747746644375,-151.0,0.00012,2]
[361742089,1747746644385,-151.0,0.00012,2]
[361742090,1747746644394,-176.491914,0.00012,2]
[361742091,1747746644403,-151.0,0.00012,2]
[361742092,1747746644413,-151.0,0.00012,2]
[361742093,1747746644423,-151.0,0.00012,2]
[361742094,1747746644433,-151.0,0.00012,2]
[361742095,1747746644442,-151.0,0.00012,2]
[361742096,1747746644452,-151.0,0.00012,2]
[361742097,1747746644462,-151.0,0.00012,2]
[361742098,1747746644473,-151.0,0.00012,2]
[361742099,1747746644483,-180.769346,0.00012,2]
[361742100,1747746644493,-180.769346,0.00012,2]
[361742101,1747746644503,-219.97885,0.00012,2]
[361742102,1747746644514,-151.0,0.00012,2]
[361742103,1747746644523,-151.0,0.00012,2]
[361742104,1747746644533,-151.0,0.00012,2]
[361742105,1747746644541,-151.0,0.00012,2]
[361742106,1747746644550,-215.243208,0.00012,2]
[361742107,1747746644559,-508.912194,0.00012,2]
[361742108,1747746644567,-508.912194,0.00012,2]
[361742109,1747746644577,-1031.224094,0.00012,2]
[361742110,1747746644586,-508.912194,0.00012,2]
[361742111,1747746644596,-1031.224094,0.00012,2]
[361742112,1747746644607,-508.912194,0.00012,2]
[361742113,1747746644616,-1031.224094,0.00012,2]
[361742114,1747746644627,-1031.224094,0.00012,2]
[361742115,1747746644637,-276.000708,0.00012,2]
[361742116,1747746644648,-276.000708,0.00012,2]
[361742117,1747746644658,-5469.636629,0.00012,2]
[361742118,1747746644672,-5469.636629,0.00012,2]
[361742119,1747746644683,-276.000708,0.00012,2]